[Event "Titled Tuesday Blitz October 19 2021"]
[White "Rasulov, Vugar"]
[Black "Samunenkov, Ihor"]
[WhiteFideId "13402390"]
[BlackFideId "14187086"]
[WhiteElo "2560"]
[BlackElo "2305"]
[Result "0-1"]
[Round "03"]
[TimeControl "180+1"]
[Date "2021.10.19"]
[WhiteClock "0:00:43"]
[BlackClock "0:00:58"]

1. d4 {[%clk 0:03:00]}  Nf6 {[%clk 0:02:59]} 2. c4 {[%clk 0:03:00]}  e6 {[%clk 0:03:00]} 3. Nf3 {[%clk 0:03:00]}  d5 {[%clk 0:02:58]} 4. Nc3 {[%clk 0:03:00]}  a6 {[%clk 0:02:59]} 5. Bg5 {[%clk 0:02:58]}  dxc4 {[%clk 0:02:58]} 6. g3 {[%clk 0:02:54]}  b5 {[%clk 0:02:55]} 7. Bg2 {[%clk 0:02:54]}  Bb7 {[%clk 0:02:55]} 8. O-O {[%clk 0:02:54]}  Be7 {[%clk 0:02:53]} 9. Qc2 {[%clk 0:02:52]}  O-O {[%clk 0:02:51]} 10. Rfd1 {[%clk 0:02:52]}  Nbd7 {[%clk 0:02:44]} 11. h4 {[%clk 0:02:44]}  h6 {[%clk 0:02:40]} 12. Bxf6 {[%clk 0:02:44]}  Nxf6 {[%clk 0:02:40]} 13. Ne5 {[%clk 0:02:42]}  Bxg2 {[%clk 0:02:36]} 14. Kxg2 {[%clk 0:02:43]}  Qc8 {[%clk 0:02:34]} 15. a4 {[%clk 0:02:32]}  Qb7+ {[%clk 0:02:34]} 16. f3 {[%clk 0:02:31]}  Nd5 {[%clk 0:02:17]} 17. Kf2 {[%clk 0:02:25]}  c5 {[%clk 0:02:16]} 18. Ne4 {[%clk 0:02:05]}  cxd4 {[%clk 0:02:11]} 19. Rxd4 {[%clk 0:02:05]}  f5 {[%clk 0:02:09]} 20. Nc3 {[%clk 0:01:35]}  Bc5 {[%clk 0:02:07]} 21. e3 {[%clk 0:01:35]}  Nxe3 {[%clk 0:01:55]} 22. Qd2 {[%clk 0:01:09]}  Bxd4 {[%clk 0:01:55]} 23. Qxd4 {[%clk 0:01:10]}  Nc2 {[%clk 0:01:55]} 24. Qd6 {[%clk 0:01:11]}  Nxa1 {[%clk 0:01:42]} 25. Qxe6+ {[%clk 0:01:10]}  Kh7 {[%clk 0:01:42]} 26. Nd5 {[%clk 0:01:05]}  Rae8 {[%clk 0:01:37]} 27. Qg6+ {[%clk 0:01:05]}  Kh8 {[%clk 0:01:36]} 28. Nc6 {[%clk 0:00:55]}  Qf7 {[%clk 0:01:31]} 29. Qd6 {[%clk 0:00:54]}  Re6 {[%clk 0:01:22]} 30. Qc5 {[%clk 0:00:53]}  Rc8 {[%clk 0:01:19]} 31. axb5 {[%clk 0:00:44]}  axb5 {[%clk 0:01:18]} 32. Ndb4 {[%clk 0:00:44]}  Nb3 {[%clk 0:01:13]} 33. Qxb5 {[%clk 0:00:43]}  Rexc6 {[%clk 0:01:01]} 34. Nxc6 {[%clk 0:00:44]}  Qd7 {[%clk 0:01:01]} 35. Qxc4 {[%clk 0:00:43]}  Rxc6 {[%clk 0:00:58]} 36. Qxb3 {[%clk 0:00:43]}  Qd2+ {[%clk 0:00:58]} 0-1


[Site "https://www.chess.com"]

[Event "Titled Tuesday Blitz October 19 2021"]
[White "Salimova, Nurgyul"]
[Black "Sukovic, Andrej"]
[WhiteFideId "2915138"]
[BlackFideId "16502310"]
[WhiteElo "2071"]
[BlackElo "2355"]
[Result "1/2-1/2"]
[Round "03"]
[TimeControl "180+1"]
[Date "2021.10.19"]
[WhiteClock "0:00:07"]
[BlackClock "0:00:09"]

1. e4 {[%clk 0:03:00]}  c6 {[%clk 0:03:00]} 2. d4 {[%clk 0:03:01]}  Na6 {[%clk 0:03:00]} 3. Nf3 {[%clk 0:02:57]}  Nc7 {[%clk 0:03:01]} 4. Bd3 {[%clk 0:02:57]}  d5 {[%clk 0:03:00]} 5. e5 {[%clk 0:02:58]}  Bg4 {[%clk 0:03:00]} 6. Nbd2 {[%clk 0:02:58]}  e6 {[%clk 0:03:01]} 7. h3 {[%clk 0:02:58]}  Bxf3 {[%clk 0:02:59]} 8. Nxf3 {[%clk 0:02:59]}  a6 {[%clk 0:02:59]} 9. c3 {[%clk 0:02:59]}  c5 {[%clk 0:02:57]} 10. O-O {[%clk 0:02:59]}  Ne7 {[%clk 0:02:56]} 11. dxc5 {[%clk 0:02:55]}  Ng6 {[%clk 0:02:52]} 12. b4 {[%clk 0:02:54]}  Be7 {[%clk 0:02:53]} 13. Re1 {[%clk 0:02:48]}  O-O {[%clk 0:02:53]} 14. Rb1 {[%clk 0:02:43]}  Nb5 {[%clk 0:02:18]} 15. Qc2 {[%clk 0:02:32]}  Rc8 {[%clk 0:02:13]} 16. a4 {[%clk 0:02:31]}  Na7 {[%clk 0:02:14]} 17. Be3 {[%clk 0:02:27]}  Nc6 {[%clk 0:02:12]} 18. Bd4 {[%clk 0:02:10]}  Qe8 {[%clk 0:02:06]} 19. g3 {[%clk 0:02:05]}  f5 {[%clk 0:01:55]} 20. exf6 {[%clk 0:02:04]}  Bxf6 {[%clk 0:01:50]} 21. Bxf6 {[%clk 0:01:48]}  Rxf6 {[%clk 0:01:50]} 22. Kg2 {[%clk 0:01:46]}  e5 {[%clk 0:01:28]} 23. Bxg6 {[%clk 0:01:41]}  hxg6 {[%clk 0:01:28]} 24. b5 {[%clk 0:01:41]}  axb5 {[%clk 0:01:27]} 25. axb5 {[%clk 0:01:42]}  e4 {[%clk 0:01:28]} 26. bxc6 {[%clk 0:01:17]}  exf3+ {[%clk 0:01:27]} 27. Kg1 {[%clk 0:01:11]}  Qxc6 {[%clk 0:01:28]} 28. Rb6 {[%clk 0:01:11]}  Qc7 {[%clk 0:00:56]} 29. Rxf6 {[%clk 0:01:10]}  gxf6 {[%clk 0:00:57]} 30. Qxg6+ {[%clk 0:01:10]}  Qg7 {[%clk 0:00:57]} 31. Qf5 {[%clk 0:01:03]}  Rd8 {[%clk 0:00:40]} 32. Qxf3 {[%clk 0:01:02]}  Qf8 {[%clk 0:00:30]} 33. Qg4+ {[%clk 0:00:51]}  Qg7 {[%clk 0:00:21]} 34. Qxg7+ {[%clk 0:00:46]}  Kxg7 {[%clk 0:00:22]} 35. Re7+ {[%clk 0:00:46]}  Kg6 {[%clk 0:00:20]} 36. Rxb7 {[%clk 0:00:47]}  Rc8 {[%clk 0:00:21]} 37. Rb5 {[%clk 0:00:46]}  Kf5 {[%clk 0:00:21]} 38. f3 {[%clk 0:00:39]}  Ke5 {[%clk 0:00:18]} 39. Kf2 {[%clk 0:00:38]}  Ra8 {[%clk 0:00:18]} 40. g4 {[%clk 0:00:29]}  Ra3 {[%clk 0:00:17]} 41. h4 {[%clk 0:00:25]}  Rxc3 {[%clk 0:00:17]} 42. h5 {[%clk 0:00:26]}  Kf4 {[%clk 0:00:09]} 43. Rb4+ {[%clk 0:00:25]}  Kg5 {[%clk 0:00:10]} 44. Kg3 {[%clk 0:00:20]}  f5 {[%clk 0:00:10]} 45. gxf5 {[%clk 0:00:11]}  Rxc5 {[%clk 0:00:07]} 46. Rg4+ {[%clk 0:00:07]}  Kxh5 {[%clk 0:00:07]} 47. Kf4 {[%clk 0:00:07]}  d4 {[%clk 0:00:05]} 48. Ke4 {[%clk 0:00:05]}  d3 {[%clk 0:00:04]} 49. Rg2 {[%clk 0:00:05]}  Rc2 {[%clk 0:00:03]} 50. Rg8 {[%clk 0:00:04]}  d2 {[%clk 0:00:01]} 51. Rd8 {[%clk 0:00:04]}  Kg5 {[%clk 0:00:02]} 52. Ke3 {[%clk 0:00:03]}  Rc5 {[%clk 0:00:01]} 53. Rxd2 {[%clk 0:00:03]}  Rxf5 {[%clk 0:00:02]} 54. Rg2+ {[%clk 0:00:03]}  Kf6 {[%clk 0:00:02]} 55. Ra2 {[%clk 0:00:04]}  Rb5 {[%clk 0:00:02]} 56. Ra6+ {[%clk 0:00:04]}  Kf5 {[%clk 0:00:03]} 57. Ra3 {[%clk 0:00:05]}  Rc5 {[%clk 0:00:03]} 58. Ra4 {[%clk 0:00:05]}  Rc3+ {[%clk 0:00:03]} 59. Kf2 {[%clk 0:00:06]}  Rc5 {[%clk 0:00:04]} 60. Kg3 {[%clk 0:00:07]}  Rd5 {[%clk 0:00:04]} 61. Rh4 {[%clk 0:00:07]}  Kg5 {[%clk 0:00:04]} 62. Rh8 {[%clk 0:00:08]}  Rd1 {[%clk 0:00:04]} 63. Rg8+ {[%clk 0:00:07]}  Kf6 {[%clk 0:00:04]} 64. Ra8 {[%clk 0:00:08]}  Rg1+ {[%clk 0:00:04]} 65. Kf4 {[%clk 0:00:09]}  Rc1 {[%clk 0:00:05]} 66. Ra6+ {[%clk 0:00:10]}  Ke7 {[%clk 0:00:05]} 67. Ke5 {[%clk 0:00:11]}  Rc5+ {[%clk 0:00:05]} 68. Kd4 {[%clk 0:00:11]}  Rb5 {[%clk 0:00:05]} 69. Ke4 {[%clk 0:00:11]}  Kf7 {[%clk 0:00:06]} 70. f4 {[%clk 0:00:11]}  Ke7 {[%clk 0:00:06]} 71. Ra4 {[%clk 0:00:11]}  Kf6 {[%clk 0:00:06]} 72. Ra6+ {[%clk 0:00:10]}  Ke7 {[%clk 0:00:06]} 73. Rc6 {[%clk 0:00:11]}  Kf7 {[%clk 0:00:06]} 74. Kf3 {[%clk 0:00:11]}  Ke7 {[%clk 0:00:06]} 75. Kg4 {[%clk 0:00:11]}  Kf7 {[%clk 0:00:07]} 76. Ra6 {[%clk 0:00:11]}  Ke7 {[%clk 0:00:07]} 77. Rg6 {[%clk 0:00:11]}  Kf7 {[%clk 0:00:07]} 78. Rh6 {[%clk 0:00:11]}  Kg7 {[%clk 0:00:07]} 79. Re6 {[%clk 0:00:10]}  Kf7 {[%clk 0:00:08]} 80. Re1 {[%clk 0:00:11]}  Ra5 {[%clk 0:00:07]} 81. Rc1 {[%clk 0:00:10]}  Rb5 {[%clk 0:00:08]} 82. Rc6 {[%clk 0:00:10]}  Ra5 {[%clk 0:00:07]} 83. Rh6 {[%clk 0:00:06]}  Kg7 {[%clk 0:00:07]} 84. Rh1 {[%clk 0:00:05]}  Kf7 {[%clk 0:00:08]} 85. Re1 {[%clk 0:00:05]}  Kf6 {[%clk 0:00:08]} 86. Rd1 {[%clk 0:00:05]}  Kf7 {[%clk 0:00:08]} 87. Rd6 {[%clk 0:00:04]}  Rb5 {[%clk 0:00:08]} 88. Rc6 {[%clk 0:00:04]}  Ra5 {[%clk 0:00:09]} 89. Kf3 {[%clk 0:00:05]}  Rd5 {[%clk 0:00:08]} 90. Ke4 {[%clk 0:00:05]}  Ra5 {[%clk 0:00:08]} 91. Rc7+ {[%clk 0:00:06]}  Ke6 {[%clk 0:00:08]} 92. Rc6+ {[%clk 0:00:07]}  Ke7 {[%clk 0:00:09]} 93. Rc4 {[%clk 0:00:06]}  Ke6 {[%clk 0:00:09]} 94. Rd4 {[%clk 0:00:06]}  Ke7 {[%clk 0:00:09]} 95. Rb4 {[%clk 0:00:04]}  Ke6 {[%clk 0:00:09]} 96. Rb6+ {[%clk 0:00:04]}  Ke7 {[%clk 0:00:09]} 97. Rb4 {[%clk 0:00:05]}  Ke6 {[%clk 0:00:09]} 98. f5+ {[%clk 0:00:05]}  Ke7 {[%clk 0:00:07]} 99. Kf4 {[%clk 0:00:06]}  Kf7 {[%clk 0:00:07]} 100. Kg5 {[%clk 0:00:06]}  Ra6 {[%clk 0:00:08]} 101. Rb7+ {[%clk 0:00:06]}  Kf8 {[%clk 0:00:08]} 102. Rc7 {[%clk 0:00:06]}  Kg8 {[%clk 0:00:07]} 103. Rd7 {[%clk 0:00:07]}  Kf8 {[%clk 0:00:08]} 104. Kf4 {[%clk 0:00:07]}  Rb6 {[%clk 0:00:08]} 105. Ke5 {[%clk 0:00:08]}  Ke8 {[%clk 0:00:08]} 106. Rh7 {[%clk 0:00:05]}  Kf8 {[%clk 0:00:08]} 107. Kf4 {[%clk 0:00:06]}  Ra6 {[%clk 0:00:08]} 108. Kg5 {[%clk 0:00:06]}  Kg8 {[%clk 0:00:08]} 109. Rd7 {[%clk 0:00:06]}  Kf8 {[%clk 0:00:09]} 110. Rd8+ {[%clk 0:00:06]}  Ke7 {[%clk 0:00:09]} 111. Rg8 {[%clk 0:00:06]}  Kf7 {[%clk 0:00:09]} 112. Rh8 {[%clk 0:00:06]}  Kg7 {[%clk 0:00:09]} 113. Rb8 {[%clk 0:00:06]}  Kf7 {[%clk 0:00:09]} 114. Rb7+ {[%clk 0:00:06]}  Kf8 {[%clk 0:00:10]} 115. Kf4 {[%clk 0:00:06]}  Ke8 {[%clk 0:00:09]} 116. Ke5 {[%clk 0:00:06]}  Kf8 {[%clk 0:00:09]} 117. Rd7 {[%clk 0:00:07]}  Rb6 {[%clk 0:00:09]} 118. Rc7 {[%clk 0:00:06]}  Ke8 {[%clk 0:00:09]} 119. Ke4 {[%clk 0:00:06]}  Kf8 {[%clk 0:00:09]} 120. Rc5 {[%clk 0:00:06]}  Ke7 {[%clk 0:00:09]} 121. Ke5 {[%clk 0:00:04]}  Ra6 {[%clk 0:00:09]} 122. Rc7+ {[%clk 0:00:04]}  Ke8 {[%clk 0:00:09]} 123. Rh7 {[%clk 0:00:05]}  Kf8 {[%clk 0:00:09]} 124. Kf4 {[%clk 0:00:05]}  Kg8 {[%clk 0:00:09]} 125. Rb7 {[%clk 0:00:05]}  Kf8 {[%clk 0:00:09]} 126. Kg5 {[%clk 0:00:06]}  Ke8 {[%clk 0:00:09]} 127. f6 {[%clk 0:00:05]}  Ra1 {[%clk 0:00:09]} 128. Rb8+ {[%clk 0:00:05]}  Kf7 {[%clk 0:00:09]} 129. Rb7+ {[%clk 0:00:05]}  Kf8 {[%clk 0:00:09]} 130. Rb5 {[%clk 0:00:04]}  Kf7 {[%clk 0:00:09]} 131. Rb7+ {[%clk 0:00:04]}  Kf8 {[%clk 0:00:09]} 132. Kf5 {[%clk 0:00:05]}  Rf1+ {[%clk 0:00:07]} 133. Ke5 {[%clk 0:00:06]}  Re1+ {[%clk 0:00:08]} 134. Kd5 {[%clk 0:00:06]}  Rd1+ {[%clk 0:00:08]} 135. Ke6 {[%clk 0:00:06]}  Re1+ {[%clk 0:00:08]} 136. Kd6 {[%clk 0:00:06]}  Rd1+ {[%clk 0:00:09]} 137. Ke5 {[%clk 0:00:05]}  Re1+ {[%clk 0:00:09]} 138. Kd4 {[%clk 0:00:06]}  Rd1+ {[%clk 0:00:09]} 139. Ke3 {[%clk 0:00:05]}  Rf1 {[%clk 0:00:10]} 140. Rb6 {[%clk 0:00:04]}  Kf7 {[%clk 0:00:09]} 141. Ke4 {[%clk 0:00:05]}  Rxf6 {[%clk 0:00:09]} 142. Rb7+ {[%clk 0:00:05]}  Kg6 {[%clk 0:00:09]} 143. Rb1 {[%clk 0:00:06]}  Re6+ {[%clk 0:00:09]} 144. Kf4 {[%clk 0:00:07]}  Ra6 {[%clk 0:00:08]} 145. Rg1+ {[%clk 0:00:07]}  Kf6 {[%clk 0:00:09]} 146. Rb1 {[%clk 0:00:07]}  Ra4+ {[%clk 0:00:09]} 147. Ke3 {[%clk 0:00:07]} 1/2-1/2


[Site "https://www.chess.com"]

[Event "Titled Tuesday Blitz October 19 2021"]
[White "Savchenko, Boris"]
[Black "Leitao, Rafael"]
[WhiteFideId "4147332"]
[BlackFideId "2101246"]
[WhiteElo "2526"]
[BlackElo "2609"]
[Result "1-0"]
[Round "03"]
[TimeControl "180+1"]
[Date "2021.10.19"]
[WhiteClock "0:00:41"]
[BlackClock "0:00:41"]

1. d4 {[%clk 0:03:00]}  Nf6 {[%clk 0:02:59]} 2. Nf3 {[%clk 0:03:01]}  g6 {[%clk 0:02:59]} 3. g3 {[%clk 0:03:00]}  Bg7 {[%clk 0:02:59]} 4. Bg2 {[%clk 0:03:01]}  O-O {[%clk 0:02:59]} 5. O-O {[%clk 0:03:01]}  d6 {[%clk 0:03:00]} 6. c4 {[%clk 0:03:01]}  c6 {[%clk 0:03:00]} 7. Nc3 {[%clk 0:03:01]}  Qa5 {[%clk 0:03:00]} 8. a3 {[%clk 0:03:00]}  Qh5 {[%clk 0:03:00]} 9. e4 {[%clk 0:02:48]}  e5 {[%clk 0:02:56]} 10. d5 {[%clk 0:02:41]}  Bg4 {[%clk 0:02:51]} 11. b4 {[%clk 0:02:31]}  cxd5 {[%clk 0:02:50]} 12. Nxd5 {[%clk 0:02:23]}  Nxd5 {[%clk 0:02:47]} 13. Qxd5 {[%clk 0:02:16]}  Nc6 {[%clk 0:02:32]} 14. Nd2 {[%clk 0:02:06]}  Nd4 {[%clk 0:02:24]} 15. Bb2 {[%clk 0:02:01]}  Be2 {[%clk 0:02:03]} 16. Rfc1 {[%clk 0:01:53]}  b6 {[%clk 0:01:43]} 17. h3 {[%clk 0:01:40]}  Qg5 {[%clk 0:01:36]} 18. Bxd4 {[%clk 0:01:32]}  Qxd2 {[%clk 0:01:34]} 19. Be3 {[%clk 0:01:30]}  Qxd5 {[%clk 0:01:23]} 20. cxd5 {[%clk 0:01:31]}  Rfc8 {[%clk 0:01:22]} 21. Rc6 {[%clk 0:01:19]}  Bb5 {[%clk 0:01:22]} 22. Rac1 {[%clk 0:01:07]}  Bxc6 {[%clk 0:01:20]} 23. dxc6 {[%clk 0:01:08]}  Bf8 {[%clk 0:01:03]} 24. Bf1 {[%clk 0:01:03]}  Rc7 {[%clk 0:00:59]} 25. b5 {[%clk 0:00:56]}  d5 {[%clk 0:00:56]} 26. exd5 {[%clk 0:00:56]}  Bd6 {[%clk 0:00:53]} 27. a4 {[%clk 0:00:50]}  f5 {[%clk 0:00:51]} 28. f3 {[%clk 0:00:48]}  f4 {[%clk 0:00:50]} 29. gxf4 {[%clk 0:00:47]}  exf4 {[%clk 0:00:50]} 30. Bd4 {[%clk 0:00:48]}  Re8 {[%clk 0:00:46]} 31. h4 {[%clk 0:00:47]}  Kf7 {[%clk 0:00:45]} 32. Kf2 {[%clk 0:00:46]}  Rd8 {[%clk 0:00:44]} 33. Bh3 {[%clk 0:00:45]}  Be7 {[%clk 0:00:43]} 34. Be6+ {[%clk 0:00:44]}  Kf8 {[%clk 0:00:41]} 35. h5 {[%clk 0:00:42]}  Bf6 {[%clk 0:00:41]} 36. Bxf6 {[%clk 0:00:41]} 1-0


[Site "https://www.chess.com"]

[Event "Titled Tuesday Blitz October 19 2021"]
[White "Shkapenko, Pavel"]
[Black "Durarbayli, Vasif"]
[WhiteFideId "4151933"]
[BlackFideId "13402935"]
[WhiteElo "2386"]
[BlackElo "2522"]
[Result "1-0"]
[Round "03"]
[TimeControl "180+1"]
[Date "2021.10.19"]
[WhiteClock "0:01:47"]
[BlackClock "0:00:24"]

1. e4 {[%clk 0:03:00]}  c5 {[%clk 0:02:59]} 2. c3 {[%clk 0:03:00]}  d5 {[%clk 0:02:55]} 3. exd5 {[%clk 0:03:00]}  Qxd5 {[%clk 0:02:56]} 4. Nf3 {[%clk 0:03:01]}  Nf6 {[%clk 0:02:55]} 5. d4 {[%clk 0:03:00]}  e6 {[%clk 0:02:55]} 6. Be2 {[%clk 0:02:59]}  Be7 {[%clk 0:02:54]} 7. O-O {[%clk 0:02:59]}  O-O {[%clk 0:02:54]} 8. c4 {[%clk 0:02:59]}  Qd6 {[%clk 0:02:31]} 9. dxc5 {[%clk 0:03:00]}  Qxd1 {[%clk 0:02:18]} 10. Rxd1 {[%clk 0:02:59]}  Bxc5 {[%clk 0:01:58]} 11. Nc3 {[%clk 0:02:59]}  Nc6 {[%clk 0:01:52]} 12. a3 {[%clk 0:02:59]}  b6 {[%clk 0:01:34]} 13. b4 {[%clk 0:02:58]}  Be7 {[%clk 0:01:33]} 14. Bf4 {[%clk 0:02:58]}  Bb7 {[%clk 0:01:30]} 15. Ne5 {[%clk 0:02:36]}  Nxe5 {[%clk 0:01:27]} 16. Bxe5 {[%clk 0:02:35]}  Rfc8 {[%clk 0:01:28]} 17. Nb5 {[%clk 0:02:32]}  a6 {[%clk 0:01:13]} 18. Nd6 {[%clk 0:02:30]}  Bxd6 {[%clk 0:00:53]} 19. Rxd6 {[%clk 0:02:26]}  Rc6 {[%clk 0:00:53]} 20. Rad1 {[%clk 0:02:22]}  Kf8 {[%clk 0:00:49]} 21. Bf3 {[%clk 0:02:18]}  Rac8 {[%clk 0:00:31]} 22. Bxc6 {[%clk 0:02:10]}  Bxc6 {[%clk 0:00:31]} 23. Bxf6 {[%clk 0:02:05]}  gxf6 {[%clk 0:00:30]} 24. Rd8+ {[%clk 0:02:05]}  Rxd8 {[%clk 0:00:30]} 25. Rxd8+ {[%clk 0:02:06]}  Ke7 {[%clk 0:00:31]} 26. Rh8 {[%clk 0:02:02]}  Be4 {[%clk 0:00:31]} 27. Rb8 {[%clk 0:02:00]}  Bd3 {[%clk 0:00:31]} 28. c5 {[%clk 0:01:57]}  bxc5 {[%clk 0:00:32]} 29. bxc5 {[%clk 0:01:57]}  Kd7 {[%clk 0:00:32]} 30. Rb6 {[%clk 0:01:53]}  f5 {[%clk 0:00:30]} 31. f4 {[%clk 0:01:51]}  f6 {[%clk 0:00:30]} 32. Kf2 {[%clk 0:01:50]}  Bc4 {[%clk 0:00:24]} 33. Ke3 {[%clk 0:01:47]} 1-0


[Site "https://www.chess.com"]

[Event "Titled Tuesday Blitz October 19 2021"]
[White "Svane, Rasmus"]
[Black "Cunha, Lucas Aguiar"]
[WhiteFideId "4657101"]
[BlackFideId "2125404"]
[WhiteElo "2643"]
[BlackElo "2361"]
[Result "1-0"]
[Round "03"]
[TimeControl "180+1"]
[Date "2021.10.19"]
[WhiteClock "0:00:49"]
[BlackClock "0:01:04"]

1. Nf3 {[%clk 0:03:00]}  d5 {[%clk 0:02:59]} 2. g3 {[%clk 0:03:00]}  Nf6 {[%clk 0:03:00]} 3. Bg2 {[%clk 0:03:00]}  c5 {[%clk 0:03:00]} 4. O-O {[%clk 0:03:01]}  Nc6 {[%clk 0:03:00]} 5. d4 {[%clk 0:03:01]}  e6 {[%clk 0:03:00]} 6. c4 {[%clk 0:03:00]}  dxc4 {[%clk 0:03:01]} 7. Qa4 {[%clk 0:02:51]}  cxd4 {[%clk 0:03:01]} 8. Nxd4 {[%clk 0:02:50]}  Qxd4 {[%clk 0:03:02]} 9. Bxc6+ {[%clk 0:02:50]}  bxc6 {[%clk 0:03:02]} 10. Qxc6+ {[%clk 0:02:43]}  Qd7 {[%clk 0:03:03]} 11. Qxa8 {[%clk 0:02:43]}  Bc5 {[%clk 0:03:03]} 12. Nc3 {[%clk 0:02:33]}  O-O {[%clk 0:03:03]} 13. Rd1 {[%clk 0:02:33]}  Qc7 {[%clk 0:03:03]} 14. Qf3 {[%clk 0:02:15]}  Bb7 {[%clk 0:03:03]} 15. e4 {[%clk 0:02:10]}  Nxe4 {[%clk 0:03:03]} 16. Nxe4 {[%clk 0:02:03]}  f5 {[%clk 0:03:04]} 17. Bf4 {[%clk 0:01:53]}  fxe4 {[%clk 0:02:03]} 18. Qe2 {[%clk 0:01:10]}  Qb6 {[%clk 0:01:39]} 19. Be3 {[%clk 0:01:09]}  Bd5 {[%clk 0:01:34]} 20. Rac1 {[%clk 0:01:06]}  Rf3 {[%clk 0:01:32]} 21. Rc3 {[%clk 0:01:04]}  h6 {[%clk 0:01:26]} 22. Bxc5 {[%clk 0:01:04]}  Qxc5 {[%clk 0:01:27]} 23. Rxf3 {[%clk 0:01:04]}  exf3 {[%clk 0:01:28]} 24. Qe3 {[%clk 0:01:03]}  Qa5 {[%clk 0:01:23]} 25. a3 {[%clk 0:01:01]}  Qb6 {[%clk 0:01:18]} 26. Qxb6 {[%clk 0:00:59]}  axb6 {[%clk 0:01:19]} 27. Kf1 {[%clk 0:00:59]}  Kf7 {[%clk 0:01:19]} 28. Ke1 {[%clk 0:00:59]}  Kf6 {[%clk 0:01:18]} 29. Kd2 {[%clk 0:00:59]}  Kf5 {[%clk 0:01:18]} 30. Ke3 {[%clk 0:00:59]}  Kg4 {[%clk 0:01:18]} 31. h4 {[%clk 0:00:57]}  Kh3 {[%clk 0:01:17]} 32. Rd4 {[%clk 0:00:54]}  h5 {[%clk 0:01:05]} 33. Rf4 {[%clk 0:00:53]}  Kg2 {[%clk 0:01:02]} 34. Rf7 {[%clk 0:00:52]}  Kf1 {[%clk 0:01:03]} 35. Rxg7 {[%clk 0:00:51]}  Ke1 {[%clk 0:01:03]} 36. g4 {[%clk 0:00:51]}  hxg4 {[%clk 0:01:02]} 37. Rxg4 {[%clk 0:00:52]}  Kd1 {[%clk 0:01:03]} 38. h5 {[%clk 0:00:48]}  Kc2 {[%clk 0:01:03]} 39. h6 {[%clk 0:00:48]}  Kxb2 {[%clk 0:01:03]} 40. h7 {[%clk 0:00:49]}  c3 {[%clk 0:01:04]} 41. h8=Q {[%clk 0:00:49]} 1-0


[Site "https://www.chess.com"]

[Event "Titled Tuesday Blitz October 19 2021"]
[White "Sydoryka, Vladyslav"]
[Black "Sethuraman, S.P."]
[WhiteFideId "14145928"]
[BlackFideId "5021596"]
[WhiteElo "2282"]
[BlackElo "2477"]
[Result "0-1"]
[Round "03"]
[TimeControl "180+1"]
[Date "2021.10.19"]
[WhiteClock "0:00:03"]
[BlackClock "0:00:15"]

1. c4 {[%clk 0:00:41]}  Nf6 {[%clk 0:02:56]} 2. g3 {[%clk 0:00:42]}  e5 {[%clk 0:02:55]} 3. Bg2 {[%clk 0:00:42]}  c6 {[%clk 0:02:51]} 4. Nf3 {[%clk 0:00:41]}  e4 {[%clk 0:02:51]} 5. Nd4 {[%clk 0:00:42]}  d5 {[%clk 0:02:51]} 6. d3 {[%clk 0:00:42]}  Bb4+ {[%clk 0:02:45]} 7. Bd2 {[%clk 0:00:39]}  Qe7 {[%clk 0:02:28]} 8. Bxb4 {[%clk 0:00:36]}  Qxb4+ {[%clk 0:02:28]} 9. Qd2 {[%clk 0:00:37]}  Qb6 {[%clk 0:02:20]} 10. Nc2 {[%clk 0:00:20]}  O-O {[%clk 0:01:59]} 11. cxd5 {[%clk 0:00:20]}  exd3 {[%clk 0:01:56]} 12. Qxd3 {[%clk 0:00:19]}  cxd5 {[%clk 0:01:49]} 13. O-O {[%clk 0:00:17]}  Qxb2 {[%clk 0:01:33]} 14. Nc3 {[%clk 0:00:16]}  Bf5 {[%clk 0:01:33]} 15. Qxf5 {[%clk 0:00:16]}  Qxc3 {[%clk 0:01:33]} 16. Ne3 {[%clk 0:00:13]}  Nc6 {[%clk 0:01:11]} 17. Rfc1 {[%clk 0:00:13]}  Qd2 {[%clk 0:00:59]} 18. Rc2 {[%clk 0:00:10]}  Qb4 {[%clk 0:00:40]} 19. Nxd5 {[%clk 0:00:10]}  Nxd5 {[%clk 0:00:40]} 20. Qxd5 {[%clk 0:00:11]}  Rad8 {[%clk 0:00:38]} 21. Qb3 {[%clk 0:00:10]}  Qxb3 {[%clk 0:00:35]} 22. axb3 {[%clk 0:00:11]}  Nd4 {[%clk 0:00:36]} 23. Rb2 {[%clk 0:00:11]}  a5 {[%clk 0:00:27]} 24. Bxb7 {[%clk 0:00:11]}  Rb8 {[%clk 0:00:21]} 25. Bd5 {[%clk 0:00:11]}  Rb5 {[%clk 0:00:20]} 26. e4 {[%clk 0:00:10]}  g5 {[%clk 0:00:18]} 27. Kg2 {[%clk 0:00:10]}  g4 {[%clk 0:00:18]} 28. h3 {[%clk 0:00:10]}  h5 {[%clk 0:00:18]} 29. hxg4 {[%clk 0:00:10]}  hxg4 {[%clk 0:00:19]} 30. Ra4 {[%clk 0:00:10]}  Nf3 {[%clk 0:00:19]} 31. Rba2 {[%clk 0:00:08]}  Rc8 {[%clk 0:00:15]} 32. Rxa5 {[%clk 0:00:08]}  Rxa5 {[%clk 0:00:15]} 33. Rxa5 {[%clk 0:00:09]}  Rc1 {[%clk 0:00:15]} 34. Ra8+ {[%clk 0:00:07]}  Kg7 {[%clk 0:00:15]} 35. Ra7 {[%clk 0:00:03]}  Rg1# {[%clk 0:00:15]} 0-1


[Site "https://www.chess.com"]

[Event "Titled Tuesday Blitz October 19 2021"]
[White "Tang, Andrew"]
[Black "Ozen, Bahadir"]
[WhiteFideId "2059630"]
[BlackFideId "6337058"]
[WhiteElo "2588"]
[BlackElo "2503"]
[Result "1-0"]
[Round "03"]
[TimeControl "180+1"]
[Date "2021.10.19"]
[WhiteClock "0:01:41"]
[BlackClock "0:00:53"]

1. d4 {[%clk 0:03:00]}  d5 {[%clk 0:02:59]} 2. Bf4 {[%clk 0:03:00]}  Nf6 {[%clk 0:02:58]} 3. e3 {[%clk 0:03:01]}  c5 {[%clk 0:02:59]} 4. Nc3 {[%clk 0:03:01]}  a6 {[%clk 0:02:44]} 5. dxc5 {[%clk 0:03:01]}  Nc6 {[%clk 0:02:43]} 6. a3 {[%clk 0:03:01]}  Bg4 {[%clk 0:02:38]} 7. Be2 {[%clk 0:02:48]}  Bxe2 {[%clk 0:02:35]} 8. Ngxe2 {[%clk 0:02:49]}  e6 {[%clk 0:02:27]} 9. b4 {[%clk 0:02:49]}  Be7 {[%clk 0:02:17]} 10. h3 {[%clk 0:02:37]}  O-O {[%clk 0:02:17]} 11. O-O {[%clk 0:02:36]}  b6 {[%clk 0:02:13]} 12. Nd4 {[%clk 0:02:33]}  Rc8 {[%clk 0:02:13]} 13. cxb6 {[%clk 0:02:18]}  Qxb6 {[%clk 0:02:14]} 14. Na4 {[%clk 0:02:16]}  Qa7 {[%clk 0:02:12]} 15. c3 {[%clk 0:02:14]}  Ne4 {[%clk 0:02:11]} 16. Rc1 {[%clk 0:02:14]}  Rfd8 {[%clk 0:02:06]} 17. Qd3 {[%clk 0:02:09]}  Nd6 {[%clk 0:02:00]} 18. Bxd6 {[%clk 0:02:09]}  Bxd6 {[%clk 0:02:00]} 19. Nxc6 {[%clk 0:02:03]}  Rxc6 {[%clk 0:02:01]} 20. e4 {[%clk 0:01:58]}  Bf4 {[%clk 0:02:00]} 21. Rcd1 {[%clk 0:01:58]}  h6 {[%clk 0:01:41]} 22. Qf3 {[%clk 0:01:56]}  Qc7 {[%clk 0:01:37]} 23. exd5 {[%clk 0:01:55]}  exd5 {[%clk 0:01:38]} 24. Rxd5 {[%clk 0:01:56]}  Rxd5 {[%clk 0:01:35]} 25. Qxd5 {[%clk 0:01:57]}  Re6 {[%clk 0:01:19]} 26. Nc5 {[%clk 0:01:54]}  Re2 {[%clk 0:01:19]} 27. Qa8+ {[%clk 0:01:52]}  Kh7 {[%clk 0:01:18]} 28. Qxa6 {[%clk 0:01:53]}  Rd2 {[%clk 0:01:15]} 29. Qc4 {[%clk 0:01:52]}  f5 {[%clk 0:01:11]} 30. Qe6 {[%clk 0:01:50]}  g6 {[%clk 0:01:11]} 31. a4 {[%clk 0:01:49]}  Bh2+ {[%clk 0:01:01]} 32. Kh1 {[%clk 0:01:49]}  Qf4 {[%clk 0:01:01]} 33. Qf7+ {[%clk 0:01:48]}  Kh8 {[%clk 0:01:01]} 34. Ne6 {[%clk 0:01:46]}  Qe5 {[%clk 0:01:00]} 35. Qe8+ {[%clk 0:01:46]}  Kh7 {[%clk 0:01:00]} 36. Qf7+ {[%clk 0:01:42]}  Kh8 {[%clk 0:01:00]} 37. Qxg6 {[%clk 0:01:42]}  f4 {[%clk 0:00:53]} 38. Qxh6+ {[%clk 0:01:39]}  Kg8 {[%clk 0:00:53]} 39. Qg6+ {[%clk 0:01:40]}  Kh8 {[%clk 0:00:53]} 40. Ng5 {[%clk 0:01:41]} 1-0


[Site "https://www.chess.com"]